fUSD/lending_fUSD_20260503
["ID","MTS","AMOUNT","RATE_DAILY","PERIOD"]
[421514779,1777803046000,-610.98238958,0.00030699,15]
[421514795,1777803046000,-155.0,0.00032144,30]
[421514775,1777803046000,-262.89419248,0.000303,30]
[421514794,1777803046000,-383.0,0.00032144,30]
[421514796,1777803046000,-158.0,0.00032144,30]
[421514824,1777803046000,-158.0,0.00033144,30]
[421514823,1777803046000,-155.0,0.00033144,30]
[421514821,1777803046000,-160.0,0.00033144,30]
[421514819,1777803046000,-6240.71981095,0.00033,120]
[421514811,1777803046000,-1160.984391,0.00032877,7]
[421514817,1777803046000,-1160.984391,0.00032877,7]
[421514816,1777803046000,-1160.984391,0.00032877,7]
[421514818,1777803046000,-1160.984391,0.00032877,7]
[421514820,1777803046000,-154.0,0.00033144,30]
[421514815,1777803046000,-1160.984391,0.00032877,7]
[421514812,1777803046000,-1160.984391,0.00032877,7]
[421514814,1777803046000,-1160.984391,0.00032877,7]
[421514813,1777803046000,-1160.984391,0.00032877,7]
[421514822,1777803046000,-383.0,0.00033144,30]
[421514808,1777803046000,-1160.984391,0.00032877,7]
[421514798,1777803046000,-161.0,0.00032145,30]
[421514810,1777803046000,-1160.984391,0.00032877,7]
[421514799,1777803046000,-571.19,0.00032442,2]
[421514801,1777803046000,-523.95081984,0.0003279,120]
[421514806,1777803046000,-151.0,0.00032877,7]
[421514805,1777803046000,-245.71264,0.000328,7]
[421514797,1777803046000,-151.0,0.00032144,7]
[421514803,1777803046000,-500.0,0.00032799,7]
[421514804,1777803046000,-24116.28764191,0.000328,7]
[421514802,1777803046000,-500.0,0.00032799,7]
[421514807,1777803046000,-1160.984391,0.00032877,7]
[421514809,1777803046000,-1160.984391,0.00032877,7]
[421514800,1777803046000,-2422.23692818,0.00032519,2]
[421514854,1777803047000,-1957.78425881,0.000351,7]
[421514859,1777803047000,-154.0,0.00035144,30]
[421514855,1777803047000,-42.21574119,0.000351,7]
[421514857,1777803047000,-150.0,0.00035119,7]
[421514856,1777803047000,-150.0,0.000351,7]
[421514858,1777803047000,-150.0,0.00035133,7]
[421514860,1777803047000,-160.0,0.00035144,30]
[421514870,1777803047000,-150.0,0.00035156,7]
[421514872,1777803047000,-150.0,0.00035194,7]
[421514862,1777803047000,-383.0,0.00035144,30]
[421514881,1777803047000,-150.0,0.00035248,7]
[421514866,1777803047000,-158.0,0.00035144,30]
[421514868,1777803047000,-161.0,0.00035145,30]
[421514864,1777803047000,-155.0,0.00035144,30]
[421514879,1777803047000,-150.0,0.00035248,7]
[421514886,1777803047000,-150.0,0.00035277,7]
[421514890,1777803047000,-150.0,0.00035322,7]
[421514888,1777803047000,-151.0,0.00035289,7]
[421514894,1777803047000,-150.0,0.00035378,7]
[421514892,1777803047000,-150.0,0.00035342,7]
[421514851,1777803047000,-150.0,0.00034989,7]
[421514874,1777803047000,-150.0,0.00035211,7]
[421514852,1777803047000,-3000.0,0.00035,2]
[421514835,1777803047000,-664.48,0.00034154,2]
[421514850,1777803047000,-150.0,0.00034989,7]
[421514832,1777803047000,-155.0,0.00034144,30]
[421514831,1777803047000,-383.0,0.00034144,30]
[421514825,1777803047000,-161.0,0.00033145,30]
[421514829,1777803047000,-154.0,0.00034144,30]
[421514828,1777803047000,-506.0,0.00034032,9]
[421514827,1777803047000,-680.09,0.00033264,2]
[421514830,1777803047000,-160.0,0.00034144,30]
[421514826,1777803047000,-200.0,0.00033147,120]
[421514833,1777803047000,-158.0,0.00034144,30]
[421514834,1777803047000,-161.0,0.00034145,30]
[421514896,1777803047000,-150.0,0.00035378,7]
[421514837,1777803047000,-629.46,0.00034326,30]
[421514836,1777803047000,-161.68,0.00034247,2]
[421514838,1777803047000,-1046.0,0.00034712,5]
[421514843,1777803047000,-150.0,0.00034989,7]
[421514842,1777803047000,-150.0,0.00034989,7]
[421514841,1777803047000,-150.0,0.00034989,30]
[421514839,1777803047000,-2146.015,0.00034712,39]
[421514840,1777803047000,-2422.23692818,0.00034739,2]
[421514844,1777803047000,-150.0,0.00034989,7]
[421514845,1777803047000,-150.0,0.00034989,7]
[421514847,1777803047000,-150.0,0.00034989,7]
[421514849,1777803047000,-150.0,0.00034989,7]
[421514853,1777803047000,-150.0,0.00035045,7]
[421514900,1777803047000,-150.0,0.00035421,7]
[421514883,1777803047000,-150.0,0.00035267,7]
[421514902,1777803047000,-150.0,0.00035433,7]
[421514959,1777803047000,-372.0,0.00035953,3]
[421514961,1777803047000,-488.0,0.00035953,3]
[421514963,1777803047000,-150.0,0.00035961,7]
[421514965,1777803047000,-449.1151341,0.00035962,2]
[421514970,1777803047000,-12500.0,0.00036,120]
[421514972,1777803047000,-1160.984391,0.00036,7]
[421514974,1777803047000,-1160.984391,0.00036,7]
[421514969,1777803047000,-150.0,0.00035997,7]
[421514976,1777803047000,-1160.984391,0.00036,7]
[421514978,1777803047000,-1160.984391,0.00036,7]
[421514967,1777803047000,-150.0,0.00035989,7]
[421514983,1777803047000,-150.0,0.00036026,7]
[421514987,1777803047000,-150.0,0.00036044,7]
[421514989,1777803047000,-150.0,0.00036049,7]
[421514981,1777803047000,-150.0,0.00036012,7]
[421514991,1777803047000,-150.0,0.000361,7]
[421514993,1777803047000,-150.0,0.00036141,7]
[421514998,1777803047000,-383.0,0.00036144,30]
[421515000,1777803047000,-155.0,0.00036144,30]
[421514898,1777803047000,-150.0,0.00035398,7]
[421514995,1777803047000,-154.0,0.00036144,30]
[421515002,1777803047000,-164.20001416,0.00036144,30]
[421514985,1777803047000,-150.0,0.00036026,7]
[421514957,1777803047000,-150.0,0.00035933,7]
[421514997,1777803047000,-160.0,0.00036144,30]
[421514953,1777803047000,-150.0,0.00035878,7]
[421514949,1777803047000,-150.0,0.00035822,7]
[421514904,1777803047000,-150.0,0.00035489,7]
[421514906,1777803047000,-150.0,0.00035507,7]
[421514911,1777803047000,-150.0,0.00035544,7]
[421514920,1777803047000,-202.40725895,0.00035632,2]
[421514917,1777803047000,-150.0,0.00035603,7]
[421514913,1777803047000,-150.0,0.00035565,7]
[421514922,1777803047000,-183.70581575,0.00035632,5]
[421514924,1777803047000,-150.0,0.00035637,7]
[421514915,1777803047000,-150.0,0.000356,7]
[421514926,1777803047000,-150.0,0.00035655,7]
[421514908,1777803047000,-150.0,0.00035507,7]
[421514945,1777803047000,-150.0,0.00035767,7]
[421514928,1777803047000,-500.0,0.00035675,5]
[421514932,1777803047000,-150.0,0.00035696,7]
[421514943,1777803047000,-150.0,0.00035767,7]
[421514936,1777803047000,-150.0,0.00035711,7]
[421514951,1777803047000,-150.0,0.00035853,7]
[421514930,1777803047000,-500.0,0.00035675,5]
[421514947,1777803047000,-150.0,0.00035807,7]
[421514934,1777803047000,-150.0,0.00035709,7]
[421514941,1777803047000,-150.0,0.00035767,7]
[421514939,1777803047000,-1165.0,0.00035766,5]
[421514955,1777803047000,-150.0,0.00035896,7]
[421515028,1777803048000,-150.35882852,0.00036428,91]
[421515025,1777803048000,-150.0,0.00036403,7]
[421515027,1777803048000,-150.0,0.00036421,7]
[421515026,1777803048000,-150.0,0.00036415,7]
[421515023,1777803048000,-506.0,0.00036331,12]
[421515024,1777803048000,-150.0,0.00036377,7]
[421515022,1777803048000,-150.0,0.00036322,7]
[421515013,1777803048000,-150.0,0.00036217,7]
[421515019,1777803048000,-150.0,0.00036285,7]
[421515021,1777803048000,-150.0,0.00036285,7]
[421515006,1777803048000,-150.0,0.00036155,7]
[421515011,1777803048000,-150.0,0.00036211,7]
[421515020,1777803048000,-150.0,0.00036285,7]
[421515017,1777803048000,-150.0,0.00036285,7]
[421515015,1777803048000,-150.0,0.00036266,7]
[421515004,1777803048000,-161.0,0.00036145,30]
[421515030,1777803048000,-150.0,0.00036433,7]
[421515008,1777803048000,-150.0,0.00036155,7]
[421515029,1777803048000,-150.0,0.00036429,7]
[421515041,1777803048000,-150.0,0.00036711,7]
[421515031,1777803048000,-150.0,0.00036489,7]
[421515051,1777803048000,-284.55529313,0.00030699,30]
[421515050,1777803048000,-974.9999998,0.00036765,2]
[421515049,1777803048000,-564.67872648,0.00036765,2]
[421515047,1777803048000,-2812.89902458,0.00036765,2]
[421515048,1777803048000,-11556.8512779,0.00036765,2]
[421515046,1777803048000,-485.728556,0.00036765,2]
[421515032,1777803048000,-150.0,0.00036544,7]
[421515042,1777803048000,-150.0,0.00036717,7]
[421515045,1777803048000,-500.0,0.00036764,7]
[421515044,1777803048000,-500.0,0.00036764,7]
[421515040,1777803048000,-150.0,0.00036674,7]
[421515035,1777803048000,-150.0,0.00036573,7]
[421515038,1777803048000,-150.0,0.00036655,7]
[421515037,1777803048000,-150.0,0.00036626,7]
[421515039,1777803048000,-5000.0,0.00036665,2]
[421515036,1777803048000,-150.0,0.000366,7]
[421515034,1777803048000,-150.0,0.00036544,7]
[421515033,1777803048000,-150.0,0.00036544,7]
[421515043,1777803048000,-150.0,0.00036756,7]
[421515053,1777803537000,4000.0,0.000301,120]
[421515054,1777803936000,-500.0,0.000192,7]
[421515055,1777803936000,-282.85812348,0.000196,2]
[421515056,1777803936000,-434.0,0.000196,2]
[421515057,1777803936000,-153.0,0.0002,2]
[421515060,1777803936000,-193.0,0.0002112,2]
[421515059,1777803936000,-153.0,0.00021,2]
[421515061,1777803936000,-250.0,0.0002112,2]
[421515058,1777803936000,-702.1,0.00020951,2]
[421515062,1777803936000,-1.90147357,0.00021144,2]
[421515063,1777804031000,-193.44041841,0.00021318,2]
[421515082,1777804047000,463.06,0.00011843,2]
[421515087,1777804048000,463.06,0.0001496,2]
[421515086,1777804048000,463.06,0.00014337,2]
[421515085,1777804048000,463.06,0.00013713,2]
[421515083,1777804048000,463.06,0.00012467,2]
[421515084,1777804048000,463.06,0.0001309,2]
[421515096,1777804147000,-390.31,0.00017453,2]
[421515094,1777804147000,-463.06,0.0001683,2]
[421515095,1777804147000,-180.51,0.0001712,2]
[421515092,1777804147000,-463.06,0.00015583,2]
[421515093,1777804147000,-463.06,0.00016207,2]
[421515097,1777804149000,-72.75,0.00017453,2]
[421515099,1777804157000,-463.06,0.000187,2]
[421515098,1777804157000,-463.06,0.00018077,2]
[421515123,1777804231000,-2306.55958159,0.00021318,2]
[421515111,1777804231000,-180.51,0.00018832,2]
[421515113,1777804231000,-255.29192636,0.00019323,2]
[421515114,1777804231000,-395.70807364,0.00019947,2]
[421515112,1777804231000,-207.76807364,0.00019323,2]
[421515115,1777804231000,-67.35192636,0.00019947,2]
[421515119,1777804231000,-463.06,0.00021194,2]
[421515116,1777804231000,-180.51,0.00020544,2]
[421515122,1777804231000,-300.0,0.00021317,2]
[421515117,1777804231000,-260.13807364,0.0002057,2]
[421515120,1777804231000,-162.45035992,0.00021317,2]
[421515121,1777804231000,-1200.0,0.00021317,2]
[421515124,1777804231000,-36.48052297,0.00021318,2]
[421515126,1777804231000,-195.2175,0.00021318,2]
[421515118,1777804231000,-202.92192636,0.0002057,2]
[421515125,1777804231000,-4396.90207703,0.00021318,2]
[421515139,1777804231000,-74856.93582451,0.00021418,2]
[421515140,1777804231000,-437.37640512,0.00021418,2]
[421515141,1777804231000,-452.9517951,0.00021418,2]
[421515138,1777804231000,-153.16648643,0.00021417,2]
[421515137,1777804231000,-500.0,0.00021417,2]
[421515136,1777804231000,-500.0,0.00021417,2]
[421515132,1777804231000,-500.0,0.00021417,2]
[421515128,1777804231000,-1155.33007127,0.00021318,2]
[421515133,1777804231000,-500.0,0.00021417,2]
[421515127,1777804231000,-228.0,0.00021318,2]
[421515130,1777804231000,-1000.0,0.00021417,2]
[421515135,1777804231000,-500.0,0.00021417,2]
[421515134,1777804231000,-500.0,0.00021417,2]
[421515131,1777804231000,-500.0,0.00021417,2]
[421515129,1777804231000,-2000.0,0.0002133,2]
[421515148,1777804237000,-36033.66157722,0.00021418,2]
[421515145,1777804237000,-324.93684459,0.00021318,2]
[421515146,1777804237000,-347.86653263,0.00021318,2]
[421515147,1777804237000,-41583.33842278,0.00021318,2]
[421515151,1777804237000,-1663.4319497,0.00021418,2]
[421515150,1777804237000,-1086.8797393,0.00021418,2]
[421515153,1777804237000,-357.39631745,0.00021418,2]
[421515152,1777804237000,-98681.92012095,0.00021418,2]
[421515149,1777804237000,-669.73112099,0.00021418,2]
[421515238,1777804238000,-203.15889069,0.00027138,2]
[421515232,1777804238000,-283.48471591,0.00027138,2]
[421515234,1777804238000,-184.1771029,0.00027138,2]
[421515230,1777804238000,-174.99149677,0.00027138,2]
[421515228,1777804238000,-500.0,0.00027138,2]
[421515223,1777804238000,-1500.0,0.000271,7]
[421515226,1777804238000,-500.0,0.00027138,2]
[421515221,1777804238000,-625.63,0.00027009,2]
[421515224,1777804238000,-507.0,0.00027137,2]
[421515219,1777804238000,-1238.35064311,0.00026909,2]
[421515215,1777804238000,-3439.91,0.00026034,2]
[421515217,1777804238000,-31825.29,0.00026034,2]
[421515243,1777804238000,-16733.39,0.00027604,2]
[421515273,1777804238000,-507.0,0.00030074,5]
[421515240,1777804238000,-241279.28626193,0.00027139,2]
[421515245,1777804238000,-190.32,0.00027843,2]
[421515249,1777804238000,-6037.0,0.00027918,2]
[421515236,1777804238000,-500.0,0.00027138,2]
[421515247,1777804238000,-1155.33007118,0.00027877,2]
[421515251,1777804238000,-535.32734454,0.00029003,2]
[421515253,1777804238000,-161.04596812,0.00029057,2]
[421515255,1777804238000,-1238.35064309,0.00029095,2]
[421515267,1777804238000,-200.0,0.00029995,2]
[421515269,1777804238000,-625.63,0.0003001,2]
[421515271,1777804238000,-1155.33007118,0.00030064,2]
[421515275,1777804238000,-483.13790442,0.00030111,14]
[421515209,1777804238000,-152.0,0.00025308,7]
[421515242,1777804238000,-535.32734463,0.00027504,2]
[421515208,1777804238000,-152.0,0.00025301,7]
[421515154,1777804238000,-3268.16674966,0.00021418,2]
[421515211,1777804238000,-180.51,0.0002568,2]
[421515259,1777804238000,-483.13790442,0.00029407,2]
[421515156,1777804238000,-380.64,0.00021418,2]
[421515166,1777804238000,-180.51,0.00022256,2]
[421515167,1777804238000,-463.06,0.0002244,2]
[421515158,1777804238000,-218.52,0.00021443,2]
[421515164,1777804238000,-153.0,0.00022,2]
[421515160,1777804238000,-500.0,0.00021636,2]
[421515162,1777804238000,-463.06,0.00021817,2]
[421515171,1777804238000,-3458.13,0.00022592,2]
[421515169,1777804238000,-605.26,0.00022562,2]
[421515175,1777804238000,-463.06,0.00023064,2]
[421515173,1777804238000,-153.0,0.00023,2]
[421515179,1777804238000,-420.0,0.0002318,2]
[421515177,1777804238000,-150.0,0.0002313,2]
[421515191,1777804238000,-175.55,0.00023848,2]
[421515181,1777804238000,-1000.0,0.000232,7]
[421515183,1777804238000,-500.0,0.00023364,2]
[421515192,1777804238000,-180.51,0.00023968,2]
[421515187,1777804238000,-463.06,0.00023687,2]
[421515196,1777804238000,-625.63,0.00024008,2]
[421515188,1777804238000,-4793.58,0.00023792,2]
[421515198,1777804238000,-200.0,0.00024008,2]
[421515185,1777804238000,-1155.33007118,0.00023504,2]
[421515200,1777804238000,-393.55864132,0.00024192,2]
[421515202,1777804238000,-500.0,0.00024274,2]
[421515204,1777804238000,-13388.35,0.0002467,2]
[421515207,1777804238000,-157.0,0.00025,2]
[421515213,1777804238000,-1155.33007118,0.00025691,2]
[421515257,1777804238000,-483.13790442,0.00029231,2]
[421515194,1777804238000,-153.0,0.00024,2]
[421515279,1777804238000,-483.13790442,0.00030286,14]
[421515342,1777804238000,-241.31,0.00034702,10]
[421515353,1777804238000,-150.0,0.00034989,7]
[421515346,1777804238000,-150.0,0.00034989,30]
[421515351,1777804238000,-150.0,0.00034989,7]
[421515386,1777804238000,-150.0,0.00035624,7]
[421515349,1777804238000,-150.0,0.00034989,7]
[421515355,1777804238000,-150.0,0.00034989,7]
[421515359,1777804238000,-150.0,0.00034989,7]
[421515357,1777804238000,-150.0,0.00034989,7]
[421515361,1777804238000,-150.0,0.00034989,7]
[421515371,1777804238000,-3573.1156351,0.00035176,2]
[421515363,1777804238000,-150.0,0.00035068,7]
[421515373,1777804238000,-150.0,0.00035227,7]
[421515338,1777804238000,-153.0,0.00034146,30]
[421515378,1777804238000,-150.0,0.00035306,7]
[421515367,1777804238000,-153.0,0.00035146,30]
[421515376,1777804238000,-150.0,0.00035267,7]
[421515379,1777804238000,-150.0,0.00035378,7]
[421515369,1777804238000,-150.0,0.00035148,7]
[421515365,1777804238000,-2000.0,0.000351,7]
[421515381,1777804238000,-150.0,0.00035465,7]
[421515380,1777804238000,-150.0,0.00035386,7]
[421515383,1777804238000,-150.0,0.00035525,2]
[421515384,1777804238000,-150.0,0.00035544,7]
[421515387,1777804238000,-1238.35064309,0.00035652,2]
[421515385,1777804238000,-150.0,0.00035544,7]
[421515382,1777804238000,-150.0,0.00035475,7]
[421515265,1777804238000,-483.13790442,0.00029935,7]
[421515375,1777804238000,-150.0,0.00035232,7]
[421515340,1777804238000,-1155.33007118,0.00034437,2]
[421515344,1777804238000,-1716.812,0.00034712,39]
[421515319,1777804238000,-1155.33007118,0.0003225,2]
[421515277,1777804238000,-161.04596812,0.0003028,14]
[421515261,1777804238000,-483.13790442,0.00029583,7]
[421515263,1777804238000,-483.13790442,0.00029759,7]
[421515281,1777804238000,-483.13790442,0.00030462,14]
[421515334,1777804238000,-1238.35064309,0.00033466,2]
[421515297,1777804238000,-165.97723788,0.00031146,30]
[421515287,1777804238000,-483.13790442,0.00030814,30]
[421515285,1777804238000,-483.13790442,0.00030638,30]
[421515299,1777804238000,-153.0,0.00031146,30]
[421515301,1777804238000,-155.0,0.00031155,30]
[421515303,1777804238000,-483.13790442,0.00031166,60]
[421515289,1777804238000,-483.13790442,0.0003099,60]
[421515291,1777804238000,-2000.0,0.000311,7]
[421515295,1777804238000,-154.0,0.00031146,30]
[421515283,1777804238000,-535.32734454,0.00030502,2]
[421515309,1777804238000,-154.55,0.00031494,10]
[421515293,1777804238000,-161.0,0.00031146,30]
[421515321,1777804238000,-924.0,0.00032822,30]
[421515331,1777804238000,-153.0,0.00033146,30]
[421515327,1777804238000,-507.0,0.00033011,8]
[421515329,1777804238000,-625.63,0.00033011,2]
[421515325,1777804238000,-664.0,0.00032822,30]
[421515317,1777804238000,-153.0,0.00032146,30]
[421515315,1777804238000,-223.67465095,0.000316,2]
[421515313,1777804238000,-483.13790442,0.00031517,120]
[421515311,1777804238000,-161.04596812,0.00031503,120]
[421515307,1777804238000,-483.13790442,0.00031341,60]
[421515305,1777804238000,-1238.35064309,0.0003128,2]
[421515323,1777804238000,-303.0,0.00032822,30]
[421515409,1777804239000,-150.0,0.000361,7]
[421515408,1777804239000,-150.0,0.0003602,7]
[421515406,1777804239000,-232.196878,0.00036,7]
[421515403,1777804239000,-232.196878,0.00036,7]
[421515400,1777804239000,-150.0,0.00035961,7]
[421515402,1777804239000,-217.48823134,0.00036,120]
[421515401,1777804239000,-20000.0,0.00036,30]
[421515404,1777804239000,-232.196878,0.00036,7]
[421515405,1777804239000,-232.196878,0.00036,7]
[421515399,1777804239000,-300.0,0.00035948,3]
[421515388,1777804239000,-150.0,0.00035703,7]
[421515398,1777804239000,-200.0,0.00035948,3]
[421515396,1777804239000,-150.0,0.00035941,7]
[421515394,1777804239000,-150.0,0.00035862,7]
[421515390,1777804239000,-150.0,0.00035767,7]
[421515393,1777804239000,-150.0,0.00035822,7]
[421515391,1777804239000,-150.0,0.00035767,7]
[421515392,1777804239000,-150.0,0.00035782,7]
[421515389,1777804239000,-150.0,0.00035718,7]
[421515415,1777804239000,-2000.0,0.000362,7]
[421515395,1777804239000,-700.0,0.000359,13]
[421515412,1777804239000,-150.0,0.00036155,7]
[421515397,1777804239000,-507.0,0.00035947,11]
[421515407,1777804239000,-625.63,0.00036012,2]
[421515418,1777804239000,-150.0,0.00036258,7]
[421515448,1777804239000,-332.0,0.00034989,30]
[421515449,1777804239000,-15.68874084,0.00036367,2]
[421515447,1777804239000,-603.0,0.00033466,30]
[421515445,1777804239000,-483.65945066,0.00032001,2]
[421515422,1777804239000,-150.0,0.00036338,7]
[421515427,1777804239000,-92678.83024805,0.00036367,2]
[421515424,1777804239000,-300.0,0.00036366,10]
[421515428,1777804239000,-312465.9422268,0.00036367,2]
[421515425,1777804239000,-671.0,0.00036367,5]
[421515446,1777804239000,-51.66789388,0.00032001,2]
[421515426,1777804239000,-412.602005,0.00036367,30]
[421515423,1777804239000,-300.0,0.00036366,10]
[421515410,1777804239000,-150.0,0.000361,7]
[421515411,1777804239000,-153.0,0.00036146,30]
[421515417,1777804239000,-150.0,0.00036204,7]
[421515416,1777804239000,-2000.0,0.000362,7]
[421515413,1777804239000,-150.0,0.00036179,7]
[421515419,1777804239000,-5000.0,0.00036267,2]
[421515420,1777804239000,-150.0,0.00036285,30]
[421515421,1777804239000,-150.0,0.00036285,7]
[421515414,1777804239000,-2000.0,0.000362,7]
[421515464,1777804240000,-1952.45775452,0.00036367,2]
[421515455,1777804240000,-22079.50922541,0.00036367,2]
[421515460,1777804240000,-12351.66145936,0.00036367,2]
[421515466,1777804240000,-151.0,0.00036367,7]
[421515465,1777804240000,-954.52930138,0.00036367,2]
[421515457,1777804240000,-151.0,0.00036367,7]
[421515451,1777804240000,-1655.35490122,0.00023721,2]
[421515456,1777804240000,-3648.6016257,0.00036367,2]
[421515454,1777804240000,-16443.41741839,0.00023721,2]
[421515453,1777804240000,-1151.15977822,0.00023721,2]
[421515450,1777804240000,-1128.17090217,0.00023721,2]
[421515461,1777804240000,-750.0,0.00036367,2]
[421515452,1777804240000,-258.117,0.00023721,2]
[421515467,1777804240000,-151.0,0.00036367,7]
[421515459,1777804240000,-151.633335,0.00036367,7]
[421515473,1777804240000,-209.47475016,0.00036367,7]
[421515475,1777804240000,-663.0,0.00036367,30]
[421515477,1777804240000,-150.0,0.00036377,7]
[421515472,1777804240000,-22.72212784,0.00036367,7]
[421515479,1777804240000,-1025.82555,0.0003641,78]
[421515469,1777804240000,-232.196878,0.00036367,7]
[421515471,1777804240000,-232.196878,0.00036367,7]
[421515480,1777804240000,-150.0,0.00036417,7]
[421515481,1777804240000,-73.01652689,0.00036447,7]
[421515462,1777804240000,-7459.92895994,0.00036367,2]
[421515463,1777804240000,-151.0,0.00036367,7]
[421515458,1777804240000,-22974.7476426,0.00036367,2]
[421515470,1777804240000,-232.196878,0.00036367,7]
[421515468,1777804240000,-151.0,0.00036367,7]
[421515505,1777804242000,-377.0,0.00036513,2]
[421515500,1777804242000,-1025.82556,0.0003646,78]
[421515512,1777804242000,-377.0,0.00036561,2]
[421515515,1777804242000,-221.51610812,0.0003658,2]
[421515513,1777804242000,-150.0,0.00036576,7]
[421515514,1777804242000,-377.0,0.00036579,2]
[421515508,1777804242000,-150.0,0.00036544,7]
[421515522,1777804242000,-397.0,0.00036648,2]
[421515506,1777804242000,-377.0,0.00036521,2]
[421515510,1777804242000,-397.0,0.00036551,2]
[421515507,1777804242000,-377.0,0.0003654,2]
[421515501,1777804242000,-397.0,0.00036495,2]
[421515503,1777804242000,-377.0,0.00036507,2]
[421515502,1777804242000,-150.0,0.00036497,7]
[421515499,1777804242000,-76.98347311,0.00036447,7]
[421515509,1777804242000,-150.0,0.00036544,7]
[421515498,1777804242000,-1663.0,0.00027918,2]
[421515504,1777804242000,-416.0,0.00036508,2]
[421515523,1777804242000,-416.0,0.00036649,2]
[421515529,1777804242000,-377.0,0.0003669,2]
[421515511,1777804242000,-377.0,0.00036553,2]
[421515524,1777804242000,-150.0,0.00036655,7]
[421515537,1777804242000,-150.0,0.00036735,7]
[421515536,1777804242000,-377.0,0.00036728,2]
[421515531,1777804242000,-377.0,0.00036695,2]
[421515532,1777804242000,-397.0,0.00036701,2]
[421515530,1777804242000,-397.0,0.00036691,2]
[421515535,1777804242000,-299.0,0.00036719,2]
[421515534,1777804242000,-299.0,0.00036711,7]
[421515527,1777804242000,-377.0,0.00036685,2]
[421515533,1777804242000,-377.0,0.00036705,2]
[421515528,1777804242000,-150.0,0.0003669,7]
[421515525,1777804242000,-150.0,0.00036655,7]
[421515518,1777804242000,-273.0,0.0003659,2]
[421515519,1777804242000,-1155.33007118,0.00036623,2]
[421515520,1777804242000,-397.0,0.00036626,2]
[421515517,1777804242000,-377.0,0.00036589,2]
[421515521,1777804242000,-427.0,0.00036626,2]
[421515526,1777804242000,-377.0,0.00036684,2]
[421515516,1777804242000,-377.0,0.00036586,2]
[421515549,1777804243000,-1025.82555,0.00036765,82]
[421515550,1777804243000,-1025.82555,0.00036765,82]
[421515554,1777804243000,-232.196878,0.00036765,7]
[421515551,1777804243000,-1025.82555,0.00036765,82]
[421515558,1777804243000,-500.0,0.00036885,7]
[421515553,1777804243000,-232.196878,0.00036765,7]
[421515548,1777804243000,-1025.82555,0.00036765,82]
[421515544,1777804243000,-200.0,0.00036765,2]
[421515556,1777804243000,-150.0,0.00036814,7]
[421515543,1777804243000,-43040.42557429,0.00036765,2]
[421515546,1777804243000,-151.0,0.00036765,7]
[421515545,1777804243000,-151.0,0.00036765,7]
[421515542,1777804243000,-500.0,0.00036764,7]
[421515541,1777804243000,-397.0,0.00036751,2]
[421515540,1777804243000,-258.54980239,0.00036749,2]
[421515538,1777804243000,-377.0,0.00036735,2]
[421515539,1777804243000,-198.81237112,0.00036737,2]
[421515547,1777804243000,-151.0,0.00036765,7]
[421515557,1777804243000,-720.61884986,0.00036876,2]
[421515567,1777804243000,-553.94,0.00036886,7]
[421515555,1777804243000,-232.196878,0.00036765,7]
[421515552,1777804243000,-232.196878,0.00036765,7]